bitfinex-derivatives/quotes_BTCF0:USTF0_20240913
["timestamp","ask_amount","ask_price","bid_price","bid_amount"]
[1726258996783,0.4591365,59849.0,59848.0,0.002]
[1726258998085,0.5591365,59849.0,59848.0,0.002]
[1726258998379,0.083525,59841.0,59840.0,0.0078]
[1726258998579,0.083525,59841.0,59837.0,0.1]
[1726258998580,0.083527,59840.0,59837.0,0.1]
[1726258998781,0.083527,59840.0,59831.0,0.0039]
[1726258998782,0.083536,59833.0,59831.0,0.0039]
[1726258999090,0.00852692,59832.0,59830.0,0.1]
[1726258999593,0.00852692,59832.0,59830.0,0.09996]
[1726258999780,0.00852692,59832.0,59831.0,0.1]
[1726259000179,0.00852692,59832.0,59831.0,0.17]
[1726259002183,0.00852692,59832.0,59831.0,0.171]
[1726259003588,0.00852692,59832.0,59831.0,0.17]
[1726259003888,0.00852692,59832.0,59831.0,0.171]
[1726259005792,0.00852692,59832.0,59831.0,0.254539]
[1726259007286,0.00852692,59832.0,59831.0,0.255539]
[1726259013593,0.00852692,59832.0,59831.0,0.002]
[1726259018096,0.37634848,59833.0,59831.0,0.002]
[1726259018395,0.37550848,59833.0,59831.0,0.002]
[1726259018701,0.38376931,59833.0,59831.0,0.002]
[1726259020203,0.46730531,59833.0,59831.0,0.002]
[1726259020904,0.083538,59832.0,59831.0,0.002]
[1726259021295,0.083538,59832.0,59831.0,0.001]
[1726259021495,0.083538,59832.0,59829.0,0.183541]
[1726259022298,0.083538,59832.0,59829.0,0.1]
[1726259022899,0.083538,59832.0,59829.0,0.102]
[1726259023800,0.083538,59832.0,59829.0,0.104]
[1726259024600,0.38460931,59833.0,59831.0,0.183538]
[1726259024802,0.38376931,59833.0,59831.0,0.183538]
[1726259026407,0.38376931,59833.0,59832.0,0.083538]
[1726259027807,0.38576931,59833.0,59832.0,0.083538]
[1726259029803,0.002,59833.0,59832.0,0.083538]
[1726259030315,0.001,59833.0,59832.0,0.083538]
[1726259030503,0.001,59833.0,59832.0,0.085538]
[1726259030903,0.001,59833.0,59832.0,0.083538]
[1726259031100,0.001,59833.0,59832.0,0.091538]
[1726259031711,0.01414226,59837.0,59836.0,0.083532]
[1726259031914,0.083524,59842.0,59841.0,0.083525]
[1726259032218,0.09786838,59842.0,59841.0,0.083525]
[1726259033210,0.09986838,59842.0,59841.0,0.083525]
[1726259033410,0.01634438,59842.0,59841.0,0.083525]
[1726259034719,0.01434438,59842.0,59841.0,0.083525]
[1726259034922,0.002,59842.0,59841.0,0.083525]
[1726259035312,0.003,59842.0,59841.0,0.083525]
[1726259036014,0.002,59842.0,59841.0,0.083525]
[1726259036219,0.01395111,59845.0,59842.0,0.083522]
[1726259036426,0.083517,59847.0,59844.0,0.1]
[1726259036617,0.083517,59847.0,59846.0,0.1]
[1726259038108,0.086517,59847.0,59846.0,0.1]
[1726259038309,0.086517,59847.0,59843.0,0.1]
[1726259039319,0.083519,59846.0,59843.0,0.1]
[1726259040923,0.088519,59846.0,59843.0,0.1]
[1726259042228,0.3608,59845.0,59843.0,0.1]
[1726259043627,0.3658,59845.0,59843.0,0.1]
[1726259044237,0.3658,59845.0,59844.0,0.083521]
[1726259044823,0.3658,59845.0,59843.0,0.1]
[1726259046023,0.3638,59845.0,59843.0,0.1]
[1726259046324,0.3658,59845.0,59843.0,0.1]
[1726259049425,0.3658,59845.0,59843.0,0.183522]
[1726259059335,0.449319,59845.0,59844.0,0.1]
[1726259059537,0.3658,59845.0,59841.0,0.083524]
[1726259059741,0.3658,59845.0,59844.0,0.1]
[1726259059939,0.3658,59845.0,59844.0,0.183521]
[1726259059940,0.005,59845.0,59844.0,0.183521]
[1726259060143,0.0039,59853.0,59852.0,0.08351]
[1726259060442,0.6038,59863.0,59852.0,0.08351]
[1726259060443,0.0039,59856.0,59855.0,0.083505]
[1726259060631,0.6038,59863.0,59855.0,0.1]
[1726259060632,0.68825501,59863.0,59855.0,0.1]
[1726259060832,0.49430979,59863.0,59862.0,0.1]
[1726259062135,0.49630979,59863.0,59862.0,0.101]
[1726259063540,0.49630979,59863.0,59862.0,0.102]
[1726259066830,0.37690979,59863.0,59862.0,0.185496]
[1726259067036,4e-05,59866.0,59865.0,0.083492]
[1726259067233,4e-05,59866.0,59865.0,0.544292]
[1726259067430,4e-05,59866.0,59865.0,1.045412]
[1726259067940,4e-05,59866.0,59865.0,0.544292]
[1726259068333,4e-05,59866.0,59865.0,0.545292]
[1726259069336,4e-05,59866.0,59865.0,0.546292]
[1726259071731,4e-05,59866.0,59865.0,0.102]
[1726259071930,0.08353,59866.0,59865.0,0.002]
[1726259073345,0.44433,59866.0,59865.0,0.102]
[1726259073542,0.36084,59866.0,59865.0,0.102]
[1726259074246,0.36084,59866.0,59865.0,0.172]
[1726259075447,0.44433,59866.0,59865.0,0.002]
[1726259075636,0.36084,59866.0,59865.0,0.002]
[1726259076649,0.36084,59866.0,59865.0,0.50312]
[1726259076950,4e-05,59866.0,59865.0,1.186612]
[1726259077146,0.4766,59878.0,59868.0,0.083486]
[1726259077340,0.564815,59878.0,59873.0,0.17]
[1726259077534,0.564815,59878.0,59870.0,0.3608]
[1726259077535,0.560075,59878.0,59877.0,0.17]
[1726259077739,0.4766,59878.0,59877.0,0.17]
[1726259077941,0.49081874,59878.0,59877.0,0.17]
[1726259079739,0.49081874,59878.0,59877.0,0.171]
[1726259080141,0.49081874,59878.0,59877.0,0.172]
[1726259080436,0.49081874,59878.0,59877.0,0.002]
[1726259080642,0.57429174,59878.0,59877.0,0.001]
[1726259080848,0.57429174,59878.0,59877.0,0.002]
[1726259082651,0.49081874,59878.0,59877.0,0.002]
[1726259089466,0.57429174,59878.0,59877.0,0.002]
[1726259093956,0.49081874,59878.0,59877.0,0.002]
[1726259094862,0.57429174,59878.0,59877.0,0.002]
[1726259097768,0.57429174,59878.0,59877.0,0.102]
[1726259103072,0.57429174,59878.0,59877.0,0.002]
[1726259109175,0.64282057,59878.0,59877.0,0.002]
[1726259109369,0.57429174,59878.0,59877.0,0.002]
[1726259118493,1.59406874,59878.0,59870.0,0.0078]
[1726259118689,0.444283,59871.0,59867.0,0.0078]
[1726259118888,0.444283,59871.0,59866.0,0.1]
[1726259119182,0.083485,59870.0,59866.0,0.1]
[1726259119382,0.083485,59870.0,59863.0,0.12]
[1726259119383,0.083486,59869.0,59863.0,0.1050972]
[1726259119590,0.3608,59865.0,59863.0,0.1050972]
[1726259121088,0.3608,59865.0,59864.0,0.1]
[1726259122787,0.166976,59868.0,59864.0,0.1]
[1726259122982,0.166976,59868.0,59863.0,0.1060972]
[1726259122983,0.166976,59868.0,59867.0,0.1]
[1726259123384,0.083488,59868.0,59867.0,0.1]
[1726259124484,0.084488,59868.0,59867.0,0.1]
[1726259125197,0.083492,59865.0,59860.0,0.0078]
[1726259125395,0.083492,59865.0,59859.0,0.083499]
[1726259125396,0.083492,59865.0,59864.0,0.1]
[1726259128490,0.085492,59865.0,59864.0,0.1]
[1726259129891,0.0039,59873.0,59872.0,0.083482]
[1726259130192,0.0133961,59877.0,59872.0,0.4608]
[1726259130399,0.00221,59878.0,59876.0,0.1]
[1726259130595,0.00221,59878.0,59877.0,0.3608]
[1726259130984,0.0158734,59878.0,59877.0,0.3608]
[1726259131189,0.00221,59878.0,59876.0,0.1]
[1726259131895,0.00621,59878.0,59877.0,0.001]
[1726259132291,0.00221,59878.0,59873.0,0.2221]
[1726259132491,0.00621,59878.0,59876.0,0.001]
[1726259133593,0.00621,59878.0,59877.0,0.001]
[1726259133994,0.00621,59878.0,59876.0,0.001]
[1726259134190,0.00621,59878.0,59876.0,0.002]
[1726259134797,0.00521,59878.0,59877.0,0.3618]
[1726259135097,0.00521,59878.0,59877.0,0.3628]
[1726259135295,0.00521,59878.0,59877.0,0.3618]
[1726259135894,0.00521,59878.0,59877.0,0.3628]
[1726259136401,0.00521,59878.0,59877.0,0.3618]
[1726259137394,0.00521,59878.0,59877.0,0.3628]
[1726259137993,0.00521,59878.0,59877.0,0.3618]
[1726259138305,0.00521,59878.0,59877.0,0.3628]
[1726259138691,0.00221,59878.0,59877.0,0.3618]
[1726259138903,0.00521,59878.0,59877.0,0.3628]
[1726259140301,0.00521,59878.0,59877.0,0.446275]
[1726259141006,0.483,59889.0,59877.0,0.566675]
[1726259141007,0.1222,59889.0,59877.0,0.566675]
[1726259141299,0.12304,59889.0,59887.0,0.1]
[1726259141607,0.1222,59889.0,59887.0,0.1]
[1726259142308,0.00304,59888.0,59887.0,0.1]
[1726259143704,0.00304,59888.0,59887.0,0.101]
[1726259143899,0.01344989,59888.0,59887.0,0.184461]
[1726259144104,0.01344989,59888.0,59887.0,0.185461]
[1726259145597,0.36925817,59895.0,59887.0,0.185461]
[1726259145598,0.3608,59900.0,59887.0,0.60292]
[1726259145798,0.09698685,59900.0,59899.0,0.1]
[1726259145999,0.01354385,59900.0,59899.0,0.4608]
[1726259146301,0.083437,59905.0,59899.0,0.544244]
[1726259146501,0.083437,59905.0,59904.0,0.1]
[1726259146897,0.083437,59905.0,59901.0,0.1]
[1726259147103,0.1,59903.0,59899.0,0.001]
[1726259148203,0.1193,59904.0,59899.0,0.001]
[1726259148408,0.1193,59904.0,59902.0,0.17]
[1726259149803,0.1193,59904.0,59903.0,0.083439]
[1726259150203,0.1193,59904.0,59900.0,0.3608]
[1726259150410,0.1193,59904.0,59902.0,0.001]
[1726259150711,0.1193,59904.0,59902.0,0.171]
[1726259151298,0.1193,59904.0,59903.0,0.001]
[1726259152504,0.1193,59904.0,59903.0,0.002]
[1726259152717,0.1193,59904.0,59903.0,0.001]
[1726259152904,0.202737,59904.0,59903.0,0.001]
[1726259153719,0.202737,59904.0,59903.0,0.002]
[1726259158721,0.202737,59904.0,59903.0,0.001]
[1726259158919,0.202737,59904.0,59903.0,0.002]
[1726259160314,0.286174,59904.0,59903.0,0.002]
[1726259161031,0.202737,59904.0,59903.0,0.002]
[1726259161413,0.286174,59904.0,59903.0,0.002]
[1726259162121,0.083441,59901.0,59900.0,0.3608]
[1726259162321,0.166882,59901.0,59900.0,0.3608]
[1726259163119,0.166882,59901.0,59900.0,0.3618]
[1726259163727,0.1519366,59901.0,59900.0,0.001]
[1726259164829,0.083441,59901.0,59900.0,0.001]
[1726259165428,0.09731669,59901.0,59900.0,0.001]
[1726259166716,0.09731669,59901.0,59900.0,0.002]
[1726259168031,0.09731669,59901.0,59900.0,0.001]
[1726259168219,0.09731669,59901.0,59900.0,0.002]
[1726259172124,0.01387569,59901.0,59900.0,0.002]
[1726259172326,0.1193,59904.0,59900.0,0.085443]
[1726259173223,0.202737,59904.0,59900.0,0.085443]
[1726259173630,0.202737,59904.0,59900.0,0.084443]
[1726259173829,0.21568563,59904.0,59900.0,0.084443]
[1726259174130,0.13224863,59904.0,59901.0,0.083441]
[1726259174827,0.13224863,59904.0,59902.0,0.08344]
[1726259176431,0.13224863,59904.0,59901.0,0.002]
[1726259176631,0.13224863,59904.0,59902.0,0.001]
[1726259176824,0.13224863,59904.0,59902.0,0.002]
[1726259178037,0.083439,59903.0,59902.0,0.002]
[1726259178631,0.083439,59903.0,59902.0,0.001]
[1726259179726,0.083439,59903.0,59902.0,0.002]
[1726259180029,0.1519346,59903.0,59902.0,0.001]
[1726259180224,0.1519346,59903.0,59902.0,0.002]
[1726259180828,0.0684956,59903.0,59902.0,0.002]
[1726259181028,0.0684956,59903.0,59902.0,0.001]
[1726259181230,0.0684956,59903.0,59902.0,0.25544]
[1726259181827,0.01294863,59904.0,59903.0,0.083439]
[1726259182032,0.36895524,59907.0,59906.0,0.083434]
[1726259182234,0.43745084,59907.0,59906.0,0.183434]
[1726259182429,0.36895524,59907.0,59906.0,0.183434]
[1726259183230,0.36895524,59907.0,59906.0,0.184434]
[1726259183739,0.38253625,59907.0,59906.0,0.184434]
[1726259184035,0.09023185,59907.0,59906.0,0.185434]
[1726259184241,0.09023185,59907.0,59906.0,0.085434]
[1726259184643,0.02173625,59907.0,59906.0,0.085434]
[1726259184829,0.0684956,59907.0,59906.0,0.085434]
[1726259185030,0.07700071,59907.0,59906.0,0.085434]
[1726259187037,0.00850511,59907.0,59906.0,0.085434]
[1726259187238,0.0684956,59908.0,59906.0,0.085434]
[1726259187438,0.0684956,59907.0,59906.0,0.085434]
[1726259187638,0.0684956,59910.0,59906.0,0.085434]
[1726259187942,0.0684956,59909.0,59906.0,0.085434]
[1726259188137,0.0684956,59908.0,59907.0,0.083433]
[1726259188344,0.0684956,59910.0,59907.0,0.083433]
[1726259188544,0.02150581,59911.0,59910.0,0.083429]
[1726259188738,0.0684911,59915.0,59911.0,0.083427]
[1726259188940,0.083418,59919.0,59911.0,0.083427]
[1726259188941,0.0684911,59916.0,59911.0,0.083427]
[1726259189139,0.16015865,59919.0,59911.0,0.083427]
[1726259189346,0.09166755,59919.0,59911.0,0.083427]
[1726259189533,0.17321252,59919.0,59911.0,0.083427]
[1726259189735,0.5308,59917.0,59907.0,0.444233]
[1726259190031,0.5308,59917.0,59911.0,0.001]
[1726259190032,0.083425,59914.0,59911.0,0.001]
[1726259190228,0.083425,59914.0,59911.0,0.002]
[1726259190842,0.083425,59914.0,59911.0,0.001]
[1726259191044,0.083425,59913.0,59911.0,0.001]
[1726259191244,0.083426,59912.0,59911.0,0.001]
[1726259191432,0.083429,59910.0,59907.0,0.3618]
[1726259192848,0.083429,59910.0,59907.0,0.3608]
[1726259193048,0.083429,59910.0,59907.0,0.3618]
[1726259193552,0.08343,59909.0,59907.0,0.3618]
[1726259194045,0.08343,59909.0,59907.0,0.3628]
[1726259196852,0.08343,59909.0,59907.0,0.002]
[1726259199862,0.21501777,59912.0,59907.0,0.002]
[1726259200260,0.083428,59911.0,59907.0,0.002]
[1726259201663,0.083428,59911.0,59907.0,0.001]
[1726259201863,0.083428,59911.0,59907.0,0.002]
[1726259202861,0.083429,59910.0,59907.0,0.002]
[1726259204362,0.083429,59910.0,59905.0,0.33141308]
[1726259204961,0.083432,59908.0,59905.0,0.33141308]
[1726259205163,0.083432,59908.0,59903.0,0.2287]
[1726259205164,0.083433,59907.0,59903.0,0.2287]
[1726259205770,0.083433,59907.0,59902.0,0.083439]
[1726259207866,0.083434,59906.0,59902.0,0.083439]
[1726259208266,0.3608,59909.0,59901.0,0.17]
[1726259208460,0.17,59905.0,59897.0,0.3608]
[1726259208661,0.17,59900.0,59896.0,0.0039]
[1726259208867,0.17,59900.0,59894.0,0.0039]
[1726259208868,0.083447,59897.0,59893.0,0.0039]
[1726259209066,0.083447,59897.0,59890.0,0.0039]
[1726259209575,0.1141,59899.0,59890.0,0.0039]
[1726259209771,0.1141,59899.0,59896.0,0.004]
[1726259210074,0.083447,59897.0,59896.0,0.004]
[1726259211467,0.083449,59896.0,59892.0,0.3788]
[1726259212174,0.083449,59896.0,59892.0,0.3608]
[1726259212770,0.083449,59896.0,59892.0,0.3628]
[1726259213079,0.083449,59896.0,59892.0,0.3648]
[1726259214675,0.08345,59895.0,59892.0,0.3648]
[1726259214881,0.083452,59894.0,59892.0,0.3648]
[1726259215474,0.2231,59898.0,59892.0,0.448253]
[1726259215676,0.12713484,59899.0,59895.0,0.17]
[1726259215978,0.01303484,59899.0,59898.0,0.253446]
[1726259216271,0.3647,59907.0,59902.0,0.08344]
[1726259216480,0.3608,59907.0,59902.0,0.08344]
[1726259216675,0.444234,59907.0,59902.0,0.08344]
[1726259217079,0.083436,59905.0,59900.0,0.3608]
[1726259217975,0.083436,59905.0,59899.0,0.083444]
[1726259218779,0.083436,59905.0,59902.0,0.001]
[1726259219779,0.083436,59905.0,59899.0,0.083444]
[1726259219969,0.084436,59905.0,59899.0,0.083444]
[1726259220372,0.083436,59905.0,59899.0,0.083444]
[1726259220571,0.084436,59905.0,59902.0,0.001]
[1726259221686,0.445236,59905.0,59902.0,0.002]
[1726259222284,0.445236,59905.0,59902.0,0.001]
[1726259222877,0.445236,59905.0,59902.0,0.002]
[1726259224781,0.253439,59903.0,59902.0,0.002]
[1726259224988,0.253439,59903.0,59902.0,0.00076903]
[1726259225378,0.083439,59903.0,59902.0,0.00076903]
[1726259225784,0.083439,59903.0,59898.0,0.3608]
[1726259226584,0.084439,59903.0,59898.0,0.3608]
[1726259227077,0.083439,59903.0,59898.0,0.3608]
[1726259228486,0.083442,59901.0,59898.0,0.3608]
[1726259229689,0.083444,59899.0,59898.0,0.3608]
[1726259230290,0.083447,59898.0,59892.0,0.0039]
[1726259230492,0.083447,59898.0,59891.0,0.083454]
[1726259230493,0.190247,59898.0,59891.0,0.083454]
[1726259230687,0.17,59893.0,59889.0,0.0039]
[1726259230880,0.17,59893.0,59888.0,0.083458]
[1726259231988,0.17,59893.0,59889.0,0.088458]
[1726259232589,0.17,59893.0,59889.0,0.083458]
[1726259233187,0.083451,59895.0,59890.0,0.083456]
[1726259234194,0.083451,59895.0,59890.0,0.253456]
[1726259234598,0.09658647,59895.0,59890.0,0.253456]
[1726259234788,0.09658647,59895.0,59891.0,0.083455]
[1726259235990,0.083452,59894.0,59891.0,0.003]
[1726259236185,0.083452,59894.0,59891.0,0.006]
[1726259240592,0.09655814,59894.0,59891.0,0.006]
[1726259242193,0.09655814,59894.0,59891.0,0.106]
[1726259244686,0.09655814,59894.0,59891.0,0.189455]
[1726259246001,0.19655814,59894.0,59891.0,0.189455]
[1726259246398,0.083454,59892.0,59891.0,0.006]
[1726259248002,0.11310614,59894.0,59891.0,0.006]
[1726259249098,0.19655814,59894.0,59891.0,0.003]
[1726259249398,0.19655814,59894.0,59891.0,0.006]
[1726259250207,0.083454,59892.0,59891.0,0.006]
[1726259251506,0.01310614,59894.0,59891.0,0.006]
[1726259251798,0.1068,59898.0,59891.0,0.006]
[1726259251799,0.1,59896.0,59891.0,0.006]
[1726259251995,0.083451,59895.0,59892.0,0.083454]
[1726259252194,0.1,59896.0,59891.0,0.006]
[1726259253103,0.083451,59894.0,59891.0,0.006]
[1726259253904,0.01332367,59898.0,59897.0,0.083447]
[1726259254200,0.448134,59907.0,59901.0,0.083441]
[1726259254403,0.444234,59907.0,59902.0,0.08344]
[1726259255111,0.1,59906.0,59902.0,0.08344]
[1726259255310,0.1,59904.0,59901.0,0.1]
[1726259255606,0.1,59904.0,59899.0,0.083444]
[1726259256498,0.1,59904.0,59902.0,0.001]
[1726259257397,0.101,59904.0,59902.0,0.001]
[1726259258109,0.101,59904.0,59902.0,0.002]
[1726259258501,0.102,59904.0,59902.0,0.001]
[1726259259210,0.102,59904.0,59902.0,0.002]
[1726259259401,0.185437,59904.0,59902.0,0.002]
[1726259259601,0.185437,59904.0,59898.0,0.1]
[1726259259806,0.1,59901.0,59897.0,0.083447]
[1726259260005,0.1,59901.0,59896.0,0.3608]
[1726259260208,0.1,59901.0,59896.0,0.4608]
[1726259260806,0.1,59901.0,59897.0,0.001]
[1726259261527,0.1,59901.0,59896.0,0.4608]
[1726259261810,0.1,59901.0,59896.0,0.4628]
[1726259262008,0.1,59901.0,59897.0,0.001]
[1726259262609,0.1,59901.0,59896.0,0.549248]
[1726259262912,0.11346275,59901.0,59896.0,0.548248]
[1726259263111,0.11346275,59901.0,59897.0,0.001]
[1726259263910,0.11346275,59901.0,59896.0,0.549208]
[1726259264106,0.11346275,59901.0,59896.0,0.546248]
[1726259264412,0.01346275,59901.0,59899.0,0.183444]
[1726259264611,0.1,59904.0,59899.0,0.183444]
[1726259265406,0.06850402,59906.0,59902.0,0.1]
[1726259265407,0.083435,59906.0,59902.0,0.1]
[1726259265612,0.083435,59906.0,59897.0,0.001]
[1726259265613,0.01358368,59906.0,59905.0,0.183436]
[1726259265810,0.06849685,59906.0,59905.0,0.183436]
[1726259266213,0.06849685,59906.0,59905.0,0.083436]
[1726259267109,0.07049685,59906.0,59905.0,0.084436]
[1726259267509,0.07149685,59906.0,59905.0,0.084436]
[1726259268013,0.07149685,59906.0,59905.0,0.085436]
[1726259268904,0.07149685,59906.0,59905.0,0.002]
[1726259269314,0.07149685,59906.0,59905.0,0.085436]
[1726259269813,0.07149685,59906.0,59905.0,0.084436]
[1726259270213,0.003,59906.0,59905.0,0.084436]
[1726259270415,0.002,59906.0,59905.0,0.083436]
[1726259270715,0.003,59906.0,59905.0,0.083436]
[1726259286725,0.07149685,59906.0,59905.0,0.083436]
[1726259291625,0.003,59906.0,59905.0,0.083436]
[1726259299235,0.086434,59906.0,59905.0,0.083436]
[1726259300926,0.003,59906.0,59905.0,0.083436]
[1726259303639,0.003,59906.0,59905.0,0.444236]
[1726259305140,0.07148832,59906.0,59905.0,0.444236]
[1726259305733,0.07148832,59906.0,59905.0,0.083436]
[1726259306038,0.07148832,59906.0,59905.0,0.444236]
[1726259307735,0.07148832,59906.0,59905.0,0.083436]
[1726259307935,0.07148832,59906.0,59905.0,0.444236]
[1726259308131,0.003,59906.0,59905.0,0.444236]
[1726259310034,0.003,59906.0,59905.0,0.32941611]
[1726259310238,0.003,59906.0,59905.0,0.41285211]
[1726259315438,0.003,59906.0,59905.0,0.32941611]
[1726259316746,0.003,59906.0,59905.0,0.41285211]
[1726259316939,0.086434,59906.0,59905.0,0.32941611]
[1726259318740,0.086434,59906.0,59903.0,0.083438]
[1726259318945,0.086434,59906.0,59903.0,0.444238]
[1726259319448,0.086434,59906.0,59903.0,0.3608]
[1726259320039,0.083437,59904.0,59903.0,0.3608]
[1726259320349,0.083446,59898.0,59896.0,0.3608]
[1726259320652,0.083447,59897.0,59896.0,0.3608]
[1726259320842,0.192147,59897.0,59896.0,0.3608]
[1726259322055,0.091824,59914.0,59900.0,0.083442]
[1726259322056,0.00474,59907.0,59900.0,0.083442]
[1726259322353,0.00474,59907.0,59896.0,0.3668]
[1726259322354,0.1087,59909.0,59906.0,0.4608]
[1726259322549,0.1087,59909.0,59908.0,0.1]
[1726259324251,0.1107,59909.0,59908.0,0.101]
[1726259324543,0.19413,59909.0,59908.0,0.101]
[1726259325352,0.19513,59909.0,59908.0,0.102]
[1726259325742,0.19513,59909.0,59908.0,0.04125935]
[1726259325942,0.19513,59909.0,59908.0,0.002]
[1726259326854,0.29513,59909.0,59908.0,0.002]
[1726259329441,0.37856,59909.0,59908.0,0.002]
[1726259329643,0.73936,59909.0,59908.0,0.002]
[1726259329847,0.08344,59902.0,59901.0,0.0039]
[1726259330153,0.08344,59902.0,59891.0,0.083455]
[1726259330154,0.4608,59902.0,59894.0,0.0039]
[1726259330353,0.1,59896.0,59891.0,0.083455]
[1726259330544,0.1178,59895.0,59894.0,0.00228839]
[1726259332459,0.1178,59895.0,59894.0,0.01028839]
[1726259333158,0.1178,59895.0,59894.0,0.01828839]
[1726259334457,0.21474606,59895.0,59894.0,0.01828839]
[1726259337458,0.01349606,59895.0,59894.0,0.11828839]
[1726259337653,0.083449,59896.0,59894.0,0.11828839]
[1726259337853,0.0966146,59896.0,59894.0,0.11828839]
[1726259338649,0.0966146,59896.0,59895.0,0.00228839]
[1726259339059,0.1966146,59896.0,59895.0,0.00228839]
[1726259340258,0.1966146,59896.0,59895.0,0.01628839]
[1726259341546,0.0131656,59896.0,59895.0,0.37708839]
[1726259341750,0.191644,59900.0,59895.0,0.37708839]
[1726259341751,0.083444,59900.0,59895.0,0.37708839]
[1726259341957,0.083444,59900.0,59897.0,0.1]
[1726259342153,0.083444,59900.0,59897.0,0.183446]
[1726259342656,0.083444,59900.0,59898.0,0.00228839]
[1726259342856,0.09673409,59900.0,59898.0,0.00228839]
[1726259343756,0.09673409,59900.0,59899.0,0.00228839]
[1726259344260,0.19673409,59900.0,59899.0,0.00228839]
[1726259345451,0.19673409,59900.0,59899.0,0.00328839]
[1726259346763,0.19673409,59900.0,59899.0,0.00428839]
[1726259348865,0.09673409,59900.0,59899.0,0.00428839]
[1726259349563,0.09673409,59900.0,59899.0,0.08773239]
[1726259353255,0.09673409,59900.0,59899.0,0.00428839]
[1726259356372,0.19673409,59900.0,59899.0,0.00428839]
[1726259358164,0.28017809,59900.0,59899.0,0.00428839]
[1726259360571,0.09673409,59900.0,59899.0,0.00428839]
[1726259369781,0.083447,59897.0,59895.0,0.25024929]
[1726259370477,0.1,59896.0,59890.0,0.0039]
[1726259370673,0.083455,59891.0,59887.0,0.0039]
[1726259370975,0.083455,59891.0,59886.0,0.083462]
[1726259372579,0.083455,59891.0,59887.0,0.014]
[1726259372978,0.083455,59891.0,59887.0,0.028]
[1726259373370,0.083455,59891.0,59886.0,0.083462]
[1726259373371,0.083455,59891.0,59886.0,0.090462]
[1726259373570,0.083455,59891.0,59886.0,0.097462]
[1726259373972,0.083457,59890.0,59886.0,0.097462]
[1726259374477,0.083457,59890.0,59887.0,0.005]
[1726259374676,0.083457,59890.0,59887.0,0.3658]
[1726259374869,0.083458,59889.0,59887.0,0.3658]
[1726259375681,0.083458,59889.0,59887.0,0.3718]
[1726259375881,0.083458,59889.0,59887.0,0.3668]
[1726259376478,0.083458,59889.0,59887.0,0.3678]
[1726259377380,0.11359295,59892.0,59887.0,0.3678]
[1726259377381,0.183459,59888.0,59887.0,0.3678]
[1726259378582,0.266918,59888.0,59887.0,0.007]
[1726259378983,0.083468,59882.0,59881.0,0.0039]
[1726259379175,0.083471,59880.0,59875.0,0.2129]
[1726259380785,0.083471,59880.0,59875.0,0.2249]
[1726259381982,0.083471,59880.0,59875.0,0.2369]
[1726259382584,0.1,59882.0,59875.0,0.2369]
[1726259382585,0.083473,59879.0,59875.0,0.2369]
[1726259385385,0.083473,59879.0,59875.0,0.320377]
[1726259386486,0.083476,59877.0,59875.0,0.320377]
[1726259387285,0.083476,59876.0,59875.0,0.320377]
[1726259389688,0.083476,59876.0,59875.0,0.308377]
[1726259389884,0.083476,59876.0,59875.0,0.320377]
[1726259392895,0.166952,59876.0,59875.0,0.024]
[1726259394289,0.083476,59876.0,59875.0,0.024]
[1726259394692,0.01395947,59879.0,59875.0,0.124]
[1726259394990,0.01395947,59879.0,59878.0,0.1]
[1726259394991,0.01311947,59879.0,59878.0,0.1]
[1726259395197,0.1137,59883.0,59878.0,0.183473]
[1726259395491,0.1137,59883.0,59882.0,0.1]
[1726259396889,0.1137,59883.0,59881.0,0.3608]
[1726259397300,0.1137,59883.0,59882.0,0.001]
[1726259397301,0.21031301,59883.0,59882.0,0.001]
[1726259397893,0.21031301,59883.0,59882.0,0.006]
[1726259398802,0.21031301,59883.0,59882.0,0.002]
[1726259399108,0.39378001,59883.0,59882.0,0.002]
[1726259399302,0.31031301,59883.0,59882.0,0.002]
[1726259404604,0.31131301,59883.0,59882.0,0.001]
[1726259405493,0.31331301,59883.0,59882.0,0.001]
[1726259405699,0.083471,59880.0,59875.0,0.087378]
[1726259405906,0.1,59879.0,59875.0,0.083478]
[1726259407000,0.1,59879.0,59875.0,0.088478]
[1726259407304,0.1,59879.0,59875.0,0.083478]
[1726259407496,0.1,59879.0,59875.0,0.088478]
[1726259407804,0.1,59879.0,59875.0,0.454278]
[1726259407995,0.183472,59879.0,59875.0,0.454278]
[1726259408595,0.083472,59879.0,59876.0,0.083476]
[1726259409200,0.083472,59879.0,59877.0,0.083475]
[1726259410604,0.083472,59879.0,59877.0,0.085475]
[1726259410808,0.083473,59878.0,59877.0,0.085475]
[1726259411901,0.083473,59878.0,59877.0,0.088475]
[1726259412097,0.083473,59878.0,59877.0,0.086475]
[1726259412405,0.083473,59878.0,59877.0,0.088475]
[1726259414393,0.083473,59878.0,59877.0,0.005]
[1726259414591,0.444273,59878.0,59877.0,0.005]
[1726259418402,0.083473,59878.0,59877.0,0.005]
[1726259418610,0.444273,59878.0,59877.0,0.005]
[1726259419500,0.083473,59878.0,59877.0,0.005]
[1726259419909,0.444273,59878.0,59877.0,0.005]
[1726259421407,0.083469,59881.0,59879.0,0.083472]
[1726259421795,0.083469,59881.0,59878.0,0.1]
[1726259421796,0.01314601,59883.0,59878.0,0.1]